[Event "*** MasterClass Titled Tuesday Blitz"]
[Site "Chess.com"]
[Date "2017.08.01"]
[Round "8"]
[White "Jahonas"]
[Black "gui_borba"]
[Result "1-0"]
[WhiteElo "2198"]
[BlackElo "2119"]
[TimeControl "180+2"]
[EndTime "14:50:38 PDT"]
[Termination "Jahonas won by resignation"]

1. d4 {[%clk 0:03:02]} 1... Nf6 {[%clk 0:02:55]} 2. c4 {[%clk 0:02:59.4]} 2...
g6 {[%clk 0:02:50.6]} 3. g3 {[%clk 0:03:00.1]} 3... Bg7 {[%clk 0:02:51.6]} 4.
Bg2 {[%clk 0:03:01.2]} 4... O-O {[%clk 0:02:53]} 5. Nf3 {[%clk 0:03:02.4]} 5...
d6 {[%clk 0:02:55]} 6. O-O {[%clk 0:03:03.5]} 6... c6 {[%clk 0:02:57.1]} 7. b3
{[%clk 0:03:04.8]} 7... Qa5 {[%clk 0:03:00]} 8. Bb2 {[%clk 0:03:04.1]} 8... Qh5
{[%clk 0:03:00.7]} 9. Nbd2 {[%clk 0:03:01.5]} 9... Bh3 {[%clk 0:03:00.7]} 10.
Re1 {[%clk 0:03:00.7]} 10... Nbd7 {[%clk 0:02:57.9]} 11. Nf1 {[%clk 0:02:58.6]}
11... Ne4 {[%clk 0:02:52.1]} 12. Qd3 {[%clk 0:01:44.6]} 12... Bf5 {[%clk
0:02:50.6]} 13. Qd1 {[%clk 0:01:29.8]} 13... Bh3 {[%clk 0:02:33.2]} 14. Qd3
{[%clk 0:01:26.3]} 14... Bf5 {[%clk 0:02:32.3]} 15. Qd1 {[%clk 0:01:19.9]} 15...
Bh3 {[%clk 0:02:33.5]} 16. Ne3 {[%clk 0:01:21.1]} 16... Bxg2 {[%clk 0:02:31.6]}
17. Kxg2 {[%clk 0:01:19.8]} 17... Ng5 {[%clk 0:02:25.4]} 18. Nxg5 {[%clk
0:01:18.9]} 18... Qxg5 {[%clk 0:02:27.3]} 19. h4 {[%clk 0:01:19.2]} 19... Qa5
{[%clk 0:02:25.7]} 20. Qd3 {[%clk 0:01:15.4]} 20... Rad8 {[%clk 0:02:24.9]} 21.
Bc3 {[%clk 0:01:14.9]} 21... Qc7 {[%clk 0:02:24.3]} 22. h5 {[%clk 0:01:10]}
22... e5 {[%clk 0:02:23.8]} 23. Rad1 {[%clk 0:01:04.7]} 23... f5 {[%clk
0:01:43.2]} 24. hxg6 {[%clk 0:01:04.8]} 24... hxg6 {[%clk 0:01:43.9]} 25. dxe5
{[%clk 0:01:05.4]} 25... Nxe5 {[%clk 0:01:44.9]} 26. Bxe5 {[%clk 0:01:04.6]}
26... dxe5 {[%clk 0:01:46.8]} 27. Qc2 {[%clk 0:01:01.2]} 27... Bh6 {[%clk
0:01:38.6]} 28. Nf1 {[%clk 0:00:58.9]} 28... Qe7 {[%clk 0:01:34]} 29. Rxd8
{[%clk 0:00:53.1]} 29... Rxd8 {[%clk 0:01:34.4]} 30. Rd1 {[%clk 0:00:54.3]}
30... e4 {[%clk 0:01:32.9]} 31. Rxd8+ {[%clk 0:00:53.3]} 31... Qxd8 {[%clk
0:01:34.8]} 32. e3 {[%clk 0:00:53.9]} 32... g5 {[%clk 0:01:30.8]} 33. g4 {[%clk
0:00:52.2]} 33... Qd7 {[%clk 0:01:30.1]} 34. gxf5 {[%clk 0:00:51]} 34... Qxf5
{[%clk 0:01:32]} 35. Ng3 {[%clk 0:00:52.1]} 35... Qf3+ {[%clk 0:01:32.3]} 36.
Kf1 {[%clk 0:00:50.7]} 36... Bg7 {[%clk 0:01:20.4]} 37. Qxe4 {[%clk 0:00:51]}
37... Qf6 {[%clk 0:01:18.8]} 38. Qe8+ {[%clk 0:00:46.7]} 38... Kh7 {[%clk
0:01:20.1]} 39. Nh5 {[%clk 0:00:44.6]} 39... Qa1+ {[%clk 0:01:19.7]} 40. Kg2
{[%clk 0:00:44.4]} 40... Qxa2 {[%clk 0:01:10.2]} 41. Qf7 {[%clk 0:00:40.8]}
41... Qb2 {[%clk 0:01:11.3]} 42. Qxb7 {[%clk 0:00:39.5]} 42... Qe5 {[%clk
0:01:05.6]} 43. Qxg7+ {[%clk 0:00:38.4]} 43... Qxg7 {[%clk 0:01:05.5]} 44. Nxg7
{[%clk 0:00:40.3]} 44... Kxg7 {[%clk 0:01:07.3]} 45. Kf3 {[%clk 0:00:41.5]}
45... Kf6 {[%clk 0:01:08.9]} 46. Ke4 {[%clk 0:00:42.7]} 46... a5 {[%clk
0:01:06]} 47. f3 {[%clk 0:00:39.9]} 47... Ke6 {[%clk 0:01:06.3]} 48. Kd4 {[%clk
0:00:40.8]} 48... Kd6 {[%clk 0:01:07.3]} 49. c5+ {[%clk 0:00:33.7]} 49... Ke6
{[%clk 0:01:08.6]} 50. Ke4 {[%clk 0:00:26.7]} 50... Kf6 {[%clk 0:01:09.7]} 51.
f4 {[%clk 0:00:27.2]} 51... g4 {[%clk 0:01:08.1]} 52. Kd3 {[%clk 0:00:27.5]}
52... Kf5 {[%clk 0:01:07.5]} 53. Ke2 {[%clk 0:00:28.5]} 53... Ke4 {[%clk
0:01:03]} 54. Kf2 {[%clk 0:00:29.3]} 54... Kd5 {[%clk 0:01:04.1]} 55. Kg3 {[%clk
0:00:30.2]} 55... Kxc5 {[%clk 0:01:05.2]} 56. Kxg4 {[%clk 0:00:31.6]} 56... Kd6
{[%clk 0:01:01.5]} 57. Kf3 {[%clk 0:00:32.4]} 57... c5 {[%clk 0:00:58]} 58. Ke2
{[%clk 0:00:33.3]} 58... Kd5 {[%clk 0:00:44.8]} 59. Kd3 {[%clk 0:00:33.6]} 1-0

[Event "*** MasterClass Titled Tuesday Blitz"]
[Site "Chess.com"]
[Date "2017.08.01"]
[Round "8"]
[White "ehrenfeld"]
[Black "IvaVidenova"]
[Result "1-0"]
[WhiteElo "2420"]
[BlackElo "2437"]
[TimeControl "180+2"]
[EndTime "14:50:40 PDT"]
[Termination "ehrenfeld won by resignation"]

1. e4 {[%clk 0:03:01.9]} 1... c5 {[%clk 0:03:00.9]} 2. Nf3 {[%clk 0:03:02.3]}
2... d6 {[%clk 0:03:02.2]} 3. Bc4 {[%clk 0:03:03]} 3... Nf6 {[%clk 0:02:58.3]}
4. d3 {[%clk 0:03:02.3]} 4... Nc6 {[%clk 0:02:59.5]} 5. c3 {[%clk 0:03:03.1]}
5... g6 {[%clk 0:03:00.8]} 6. Bb3 {[%clk 0:03:01.7]} 6... Bg7 {[%clk 0:03:02]}
7. O-O {[%clk 0:03:02.4]} 7... O-O {[%clk 0:03:03]} 8. Re1 {[%clk 0:03:01.4]}
8... Rb8 {[%clk 0:03:00.3]} 9. h3 {[%clk 0:02:59]} 9... b5 {[%clk 0:03:01.1]}
10. d4 {[%clk 0:03:00.1]} 10... b4 {[%clk 0:02:58.8]} 11. e5 {[%clk 0:02:37.3]}
11... dxe5 {[%clk 0:02:50.4]} 12. dxe5 {[%clk 0:02:38]} 12... Qxd1 {[%clk
0:02:46]} 13. Rxd1 {[%clk 0:02:36.4]} 13... Ne8 {[%clk 0:02:28.1]} 14. Bf4
{[%clk 0:02:26.7]} 14... Be6 {[%clk 0:02:25.3]} 15. Nbd2 {[%clk 0:02:15.2]}
15... Nc7 {[%clk 0:02:20.1]} 16. Bxe6 {[%clk 0:02:03.5]} 16... Nxe6 {[%clk
0:02:19.8]} 17. Bg3 {[%clk 0:02:04.8]} 17... bxc3 {[%clk 0:02:16.6]} 18. bxc3
{[%clk 0:02:05.6]} 18... Rfd8 {[%clk 0:02:12.1]} 19. Nc4 {[%clk 0:02:04.3]}
19... Kf8 {[%clk 0:01:56.3]} 20. Kf1 {[%clk 0:02:05.1]} 20... Ke8 {[%clk
0:01:57.3]} 21. Ke2 {[%clk 0:02:06.1]} 21... Bh6 {[%clk 0:01:57.8]} 22. Rab1
{[%clk 0:02:02.6]} 22... Bf4 {[%clk 0:01:47.2]} 23. Rxd8+ {[%clk 0:01:53.8]}
23... Kxd8 {[%clk 0:01:42.2]} 24. Rxb8+ {[%clk 0:01:43.1]} 24... Nxb8 {[%clk
0:01:42.7]} 25. Kd3 {[%clk 0:01:13.2]} 25... Bxg3 {[%clk 0:01:32.4]} 26. fxg3
{[%clk 0:01:13.6]} 26... Kd7 {[%clk 0:01:31.9]} 27. Ke4 {[%clk 0:01:14.5]} 27...
Kc6 {[%clk 0:01:32.8]} 28. Ne3 {[%clk 0:01:03.4]} 28... Na6 {[%clk 0:01:18.1]}
29. Nd5 {[%clk 0:01:01.8]} 29... Kd7 {[%clk 0:01:18.1]} 30. Nf4 {[%clk
0:01:01.7]} 30... h6 {[%clk 0:01:09.3]} 31. Nd5 {[%clk 0:00:48.8]} 31... c4
{[%clk 0:01:03.2]} 32. Ne3 {[%clk 0:00:42.6]} 32... Nac5+ {[%clk 0:00:42.1]} 33.
Kd5 {[%clk 0:00:43.3]} 33... Na4 {[%clk 0:00:19.5]} 34. Kxc4 {[%clk 0:00:43.3]}
34... Kc6 {[%clk 0:00:20.8]} 35. Nd4+ {[%clk 0:00:42.5]} 35... Nxd4 {[%clk
0:00:21.9]} 36. cxd4 {[%clk 0:00:43.5]} 36... e6 {[%clk 0:00:22.1]} 37. d5+
{[%clk 0:00:21.4]} 37... exd5+ {[%clk 0:00:21.9]} 38. Nxd5 {[%clk 0:00:22.6]}
38... Nb2+ {[%clk 0:00:19.1]} 39. Kd4 {[%clk 0:00:23.5]} 39... Nd1 {[%clk
0:00:20.2]} 40. Nf4 {[%clk 0:00:20.5]} 40... Nb2 {[%clk 0:00:18.8]} 41. e6
{[%clk 0:00:20.6]} 41... fxe6 {[%clk 0:00:18.5]} 42. Nxg6 {[%clk 0:00:21.4]}
42... Kd6 {[%clk 0:00:19.3]} 43. Ne5 {[%clk 0:00:22.6]} 43... Na4 {[%clk
0:00:18.9]} 44. Nc4+ {[%clk 0:00:21.4]} 44... Ke7 {[%clk 0:00:20.2]} 45. g4
{[%clk 0:00:21.8]} 45... Kf6 {[%clk 0:00:19.6]} 46. h4 {[%clk 0:00:22.9]} 46...
Nb6 {[%clk 0:00:17.8]} 47. Nxb6 {[%clk 0:00:23.2]} 47... axb6 {[%clk 0:00:19.7]}
48. Ke4 {[%clk 0:00:23]} 48... Ke7 {[%clk 0:00:19.9]} 49. Ke5 {[%clk 0:00:23.9]}
49... Kf7 {[%clk 0:00:21.3]} 50. g5 {[%clk 0:00:24.3]} 50... hxg5 {[%clk
0:00:23.2]} 51. hxg5 {[%clk 0:00:25.3]} 51... Kg6 {[%clk 0:00:24.4]} 52. Kxe6
{[%clk 0:00:26.4]} 52... Kxg5 {[%clk 0:00:25.8]} 53. Kd6 {[%clk 0:00:27.6]}
53... Kg4 {[%clk 0:00:27.4]} 54. Kc6 {[%clk 0:00:28.8]} 54... Kg3 {[%clk
0:00:29]} 55. Kxb6 {[%clk 0:00:30]} 55... Kxg2 {[%clk 0:00:30.9]} 56. a4 {[%clk
0:00:31]} 1-0

[Event "*** MasterClass Titled Tuesday Blitz"]
[Site "Chess.com"]
[Date "2017.08.01"]
[Round "8"]
[White "evgenysharapov"]
[Black "Lord_Neezy"]
[Result "1-0"]
[WhiteElo "2265"]
[BlackElo "2176"]
[TimeControl "180+2"]
[EndTime "14:50:44 PDT"]
[Termination "evgenysharapov won by resignation"]

1. e4 {[%clk 0:03:00.7]} 1... e6 {[%clk 0:02:58.8]} 2. d4 {[%clk 0:03:01.2]}
2... d5 {[%clk 0:03:00.1]} 3. Nc3 {[%clk 0:03:01.7]} 3... Bb4 {[%clk 0:02:59.8]}
4. e5 {[%clk 0:03:02.3]} 4... c5 {[%clk 0:03:01.4]} 5. a3 {[%clk 0:03:02.8]}
5... Bxc3+ {[%clk 0:03:02.2]} 6. bxc3 {[%clk 0:03:03.5]} 6... Qa5 {[%clk
0:03:03.8]} 7. Bd2 {[%clk 0:03:03.9]} 7... Qa4 {[%clk 0:03:01]} 8. Qb1 {[%clk
0:03:04.3]} 8... c4 {[%clk 0:03:01.2]} 9. Nh3 {[%clk 0:03:05.2]} 9... Nc6 {[%clk
0:03:01.8]} 10. Nf4 {[%clk 0:03:05.8]} 10... Bd7 {[%clk 0:03:02.5]} 11. Nh5
{[%clk 0:03:05.9]} 11... g6 {[%clk 0:03:03.3]} 12. Nf4 {[%clk 0:03:02.5]} 12...
O-O-O {[%clk 0:02:55]} 13. g3 {[%clk 0:03:02.9]} 13... f6 {[%clk 0:02:51.6]} 14.
exf6 {[%clk 0:03:01.8]} 14... Nxf6 {[%clk 0:02:50.7]} 15. Bg2 {[%clk 0:03:02.6]}
15... g5 {[%clk 0:02:39.6]} 16. Ne2 {[%clk 0:03:03.2]} 16... Rdg8 {[%clk
0:02:25.4]} 17. O-O {[%clk 0:03:03.2]} 17... h5 {[%clk 0:02:21.2]} 18. h3 {[%clk
0:03:03.8]} 18... Qa5 {[%clk 0:02:07.6]} 19. a4 {[%clk 0:02:56.6]} 19... Qc7
{[%clk 0:01:34.1]} 20. a5 {[%clk 0:02:51]} 20... Nxa5 {[%clk 0:01:23.6]} 21. Qc1
{[%clk 0:02:44.5]} 21... Nh7 {[%clk 0:01:12.1]} 22. Be3 {[%clk 0:02:34]} 22...
Nc6 {[%clk 0:01:04.9]} 23. Qa3 {[%clk 0:02:21.1]} 23... Be8 {[%clk 0:00:56.7]}
24. Rfb1 {[%clk 0:01:56.6]} 24... Bg6 {[%clk 0:00:56.4]} 25. Rb2 {[%clk
0:01:55.3]} 25... Bf5 {[%clk 0:00:49.2]} 26. Nc1 {[%clk 0:01:49.1]} 26... Nf6
{[%clk 0:00:46.9]} 27. Na2 {[%clk 0:01:49.4]} 27... Be4 {[%clk 0:00:35.1]} 28.
Nb4 {[%clk 0:01:48.5]} 28... Nxb4 {[%clk 0:00:35.9]} 29. Rxb4 {[%clk 0:01:30.9]}
29... b6 {[%clk 0:00:20.8]} 30. Qxa7 {[%clk 0:01:20.1]} 30... Qxa7 {[%clk
0:00:22.7]} 31. Rxa7 {[%clk 0:01:20.2]} 31... Bxg2 {[%clk 0:00:22.9]} 32. Kxg2
{[%clk 0:01:21]} 32... Nd7 {[%clk 0:00:23.8]} 33. Rba4 {[%clk 0:01:11.7]} 33...
h4 {[%clk 0:00:18.7]} 34. g4 {[%clk 0:01:11.6]} 34... Rg6 {[%clk 0:00:16.3]} 35.
Ra8+ {[%clk 0:01:06.5]} 35... Nb8 {[%clk 0:00:17.8]} 36. R4a7 {[%clk 0:01:04]}
36... Rhg8 {[%clk 0:00:17.9]} 37. Re7 {[%clk 0:00:59.3]} 37... R8g7 {[%clk
0:00:17.8]} 38. Re8+ {[%clk 0:00:59.2]} 38... Kc7 {[%clk 0:00:18.2]} 39. Raxb8
{[%clk 0:00:58.6]} 39... Kc6 {[%clk 0:00:19.7]} 40. Rec8+ {[%clk 0:00:56.3]}
40... Kb5 {[%clk 0:00:20.2]} 41. Re8 {[%clk 0:00:46.9]} 41... Ra7 {[%clk
0:00:20.2]} 42. Rg8 {[%clk 0:00:45.7]} 42... Rxg8 {[%clk 0:00:19.4]} 43. Rxg8
{[%clk 0:00:46.1]} 43... Ra2 {[%clk 0:00:21.3]} 44. Bxg5 {[%clk 0:00:42.3]}
44... Rxc2 {[%clk 0:00:22.5]} 45. Bf4 {[%clk 0:00:40.1]} 45... Rxc3 {[%clk
0:00:23.3]} 46. g5 {[%clk 0:00:41.4]} 46... Rd3 {[%clk 0:00:22.7]} 47. g6 {[%clk
0:00:42.5]} 47... Rxd4 {[%clk 0:00:23.7]} 48. Be3 {[%clk 0:00:40.5]} 48... Re4
{[%clk 0:00:24.7]} 49. g7 {[%clk 0:00:41.5]} 49... d4 {[%clk 0:00:20.5]} 50. Rd8
{[%clk 0:00:39.5]} 50... dxe3 {[%clk 0:00:21.2]} 51. fxe3 {[%clk 0:00:40.3]}
51... Rxe3 {[%clk 0:00:20.3]} 52. g8=Q {[%clk 0:00:39.8]} 52... Rg3+ {[%clk
0:00:21.9]} 53. Qxg3 {[%clk 0:00:40.4]} 53... hxg3 {[%clk 0:00:23.8]} 54. h4
{[%clk 0:00:41.7]} 54... c3 {[%clk 0:00:24.8]} 55. Rc8 {[%clk 0:00:42.1]} 55...
Kb4 {[%clk 0:00:26.2]} 56. h5 {[%clk 0:00:42.7]} 1-0

[Event "*** MasterClass Titled Tuesday Blitz"]
[Site "Chess.com"]
[Date "2017.08.01"]
[Round "8"]
[White "Saitama_Hero"]
[Black "Bad4life"]
[Result "0-1"]
[WhiteElo "2222"]
[BlackElo "2175"]
[TimeControl "180+2"]
[EndTime "14:50:46 PDT"]
[Termination "Bad4life won on time"]

1. d4 {[%clk 0:03:01.9]} 1... Nf6 {[%clk 0:03:00.1]} 2. c4 {[%clk 0:03:02]} 2...
d6 {[%clk 0:03:01.2]} 3. Nc3 {[%clk 0:03:02.9]} 3... g6 {[%clk 0:03:02.8]} 4. e4
{[%clk 0:03:03.4]} 4... Bg7 {[%clk 0:03:04.4]} 5. Nf3 {[%clk 0:03:03.8]} 5...
O-O {[%clk 0:03:06]} 6. Be2 {[%clk 0:03:05.2]} 6... e5 {[%clk 0:03:07.2]} 7. O-O
{[%clk 0:03:06.6]} 7... Nc6 {[%clk 0:03:08.4]} 8. d5 {[%clk 0:03:07.8]} 8... Ne7
{[%clk 0:03:10.1]} 9. b4 {[%clk 0:03:09.3]} 9... a5 {[%clk 0:03:11.6]} 10. bxa5
{[%clk 0:03:09.3]} 10... c5 {[%clk 0:03:12.5]} 11. dxc6 {[%clk 0:03:02.6]} 11...
Nxc6 {[%clk 0:03:13.7]} 12. Be3 {[%clk 0:02:57.2]} 12... Rxa5 {[%clk 0:03:07.2]}
13. Nd5 {[%clk 0:02:56.3]} 13... Nxd5 {[%clk 0:03:01.6]} 14. cxd5 {[%clk
0:02:55.3]} 14... Ne7 {[%clk 0:02:59.4]} 15. Qb3 {[%clk 0:02:56]} 15... Qd7
{[%clk 0:02:46.8]} 16. Rfc1 {[%clk 0:02:33.2]} 16... Qa4 {[%clk 0:02:24]} 17.
Qb6 {[%clk 0:02:15.6]} 17... Re8 {[%clk 0:01:29.9]} 18. Bd2 {[%clk 0:01:31.4]}
18... Qxe4 {[%clk 0:01:20.5]} 19. Bxa5 {[%clk 0:01:26.3]} 19... Qxe2 {[%clk
0:01:21.5]} 20. Qxd6 {[%clk 0:01:11.3]} 20... Nf5 {[%clk 0:01:16.4]} 21. Qc5
{[%clk 0:01:05.5]} 21... e4 {[%clk 0:01:14.8]} 22. Re1 {[%clk 0:01:01.7]} 22...
Qb2 {[%clk 0:00:50.9]} 23. Rad1 {[%clk 0:00:36.3]} 23... Qxa2 {[%clk 0:00:19.7]}
24. d6 {[%clk 0:00:35.8]} 24... Bd7 {[%clk 0:00:16.7]} 25. Bc3 {[%clk
0:00:37.2]} 25... exf3 {[%clk 0:00:11.9]} 26. Rxe8+ {[%clk 0:00:35.3]} 26...
Bxe8 {[%clk 0:00:13.3]} 27. Bxg7 {[%clk 0:00:34.4]} 27... Qe2 {[%clk 0:00:08.8]}
28. Qd5 {[%clk 0:00:17.3]} 28... Bc6 {[%clk 0:00:06.4]} 29. Qd2 {[%clk
0:00:14.5]} 29... Kxg7 {[%clk 0:00:02.9]} 30. d7 {[%clk 0:00:14.8]} 30... Bxd7
{[%clk 0:00:02.6]} 31. Qxd7 {[%clk 0:00:13.5]} 31... fxg2 {[%clk 0:00:04.2]} 32.
Qd3 {[%clk 0:00:11.7]} 32... Qh5 {[%clk 0:00:05]} 33. Qc3+ {[%clk 0:00:11.7]}
33... Kh6 {[%clk 0:00:06.4]} 34. Qd2+ {[%clk 0:00:09.6]} 34... Kg7 {[%clk
0:00:08]} 35. Qb2+ {[%clk 0:00:10.9]} 35... Kh6 {[%clk 0:00:09.1]} 36. Qd2+
{[%clk 0:00:11.8]} 36... Kg7 {[%clk 0:00:09.3]} 37. Qd5 {[%clk 0:00:13.7]} 37...
Qg4 {[%clk 0:00:09.4]} 38. Qe5+ {[%clk 0:00:11.7]} 38... Kh6 {[%clk 0:00:09]}
39. Re1 {[%clk 0:00:09.9]} 39... Nh4 {[%clk 0:00:08.5]} 40. Qe3+ {[%clk
0:00:09.6]} 40... Kg7 {[%clk 0:00:08.4]} 41. Qc3+ {[%clk 0:00:09.8]} 41... Kh6
{[%clk 0:00:08.3]} 42. Qe3+ {[%clk 0:00:10]} 42... g5 {[%clk 0:00:09.2]} 43.
Qb6+ {[%clk 0:00:09.7]} 43... Kg7 {[%clk 0:00:09.5]} 44. Qd4+ {[%clk 0:00:09]}
44... Qxd4 {[%clk 0:00:09.6]} 0-1

[Event "*** MasterClass Titled Tuesday Blitz"]
[Site "Chess.com"]
[Date "2017.08.01"]
[Round "8"]
[White "Journey_to_GrandMaster_YT"]
[Black "oskariot"]
[Result "1/2-1/2"]
[WhiteElo "2354"]
[BlackElo "2496"]
[TimeControl "180+2"]
[EndTime "14:51:06 PDT"]
[Termination "Game drawn by repetition"]

1. d4 {[%clk 0:03:01.9]} 1... Nf6 {[%clk 0:02:39.8]} 2. Nf3 {[%clk 0:03:01]}
2... g6 {[%clk 0:02:38.9]} 3. g3 {[%clk 0:03:01.1]} 3... Bg7 {[%clk 0:02:39.9]}
4. Bg2 {[%clk 0:03:02.1]} 4... O-O {[%clk 0:02:40.7]} 5. O-O {[%clk 0:03:02.6]}
5... d6 {[%clk 0:02:39.3]} 6. b3 {[%clk 0:03:03.2]} 6... a5 {[%clk 0:02:37.1]}
7. a4 {[%clk 0:02:59.2]} 7... Na6 {[%clk 0:02:30.4]} 8. Bb2 {[%clk 0:02:58.6]}
8... c6 {[%clk 0:02:31.8]} 9. Nbd2 {[%clk 0:02:58.2]} 9... Bf5 {[%clk
0:02:27.1]} 10. Re1 {[%clk 0:02:55.2]} 10... d5 {[%clk 0:02:28.2]} 11. Nh4
{[%clk 0:02:54.7]} 11... Bg4 {[%clk 0:02:25]} 12. h3 {[%clk 0:02:55.1]} 12...
Bc8 {[%clk 0:02:25.2]} 13. e4 {[%clk 0:02:47.1]} 13... dxe4 {[%clk 0:02:24]} 14.
Nxe4 {[%clk 0:02:46]} 14... Nxe4 {[%clk 0:02:25.1]} 15. Rxe4 {[%clk 0:02:41.6]}
15... Be6 {[%clk 0:01:58.3]} 16. c3 {[%clk 0:02:08]} 16... Bd5 {[%clk
0:01:55.7]} 17. Re2 {[%clk 0:01:59.9]} 17... Bxg2 {[%clk 0:01:55.5]} 18. Nxg2
{[%clk 0:02:00]} 18... c5 {[%clk 0:01:33.5]} 19. d5 {[%clk 0:01:54.7]} 19... c4
{[%clk 0:01:34.5]} 20. bxc4 {[%clk 0:01:49.5]} 20... Rc8 {[%clk 0:01:34.8]} 21.
Ne3 {[%clk 0:01:49.3]} 21... Qd7 {[%clk 0:01:33.8]} 22. Qb3 {[%clk 0:01:41.6]}
22... Nc5 {[%clk 0:01:27.6]} 23. Qb5 {[%clk 0:01:42.3]} 23... Qxh3 {[%clk
0:01:27.2]} 24. Ng2 {[%clk 0:01:19.6]} 24... Nd3 {[%clk 0:01:08.5]} 25. Rxe7
{[%clk 0:01:07.5]} 25... Ne5 {[%clk 0:00:49.4]} 26. Rxe5 {[%clk 0:00:43.7]}
26... Bxe5 {[%clk 0:00:50.1]} 27. c5 {[%clk 0:00:42.3]} 27... Qf5 {[%clk
0:00:30.2]} 28. Re1 {[%clk 0:00:35]} 28... Bg7 {[%clk 0:00:27.8]} 29. Ne3 {[%clk
0:00:30.5]} 29... Qf3 {[%clk 0:00:29]} 30. c4 {[%clk 0:00:17.2]} 30... Bxb2
{[%clk 0:00:25.5]} 31. Qxb2 {[%clk 0:00:19.1]} 31... Rxc5 {[%clk 0:00:26]} 32.
Qxb7 {[%clk 0:00:19.6]} 32... h5 {[%clk 0:00:22.2]} 33. Qe7 {[%clk 0:00:19.2]}
33... Rcc8 {[%clk 0:00:23]} 34. d6 {[%clk 0:00:15.7]} 34... Rce8 {[%clk
0:00:24]} 35. Qg5 {[%clk 0:00:13.2]} 35... Qc6 {[%clk 0:00:17.3]} 36. c5 {[%clk
0:00:11.1]} 36... Qxa4 {[%clk 0:00:18.5]} 37. Qd5 {[%clk 0:00:08]} 37... Re4
{[%clk 0:00:17.4]} 38. Rd1 {[%clk 0:00:03.8]} 38... h4 {[%clk 0:00:13.4]} 39. d7
{[%clk 0:00:04.3]} 39... Rd8 {[%clk 0:00:11.6]} 40. gxh4 {[%clk 0:00:05.3]}
40... Rxh4 {[%clk 0:00:10.1]} 41. c6 {[%clk 0:00:06.4]} 41... Rg4+ {[%clk
0:00:11.2]} 42. Nxg4 {[%clk 0:00:07.1]} 42... Qxg4+ {[%clk 0:00:12.4]} 43. Kf1
{[%clk 0:00:08.2]} 43... Qh3+ {[%clk 0:00:13.8]} 44. Qg2 {[%clk 0:00:07.2]}
44... Qb3 {[%clk 0:00:14.5]} 45. Qd5 {[%clk 0:00:07]} 45... Qh3+ {[%clk
0:00:15.1]} 46. Qg2 {[%clk 0:00:06.4]} 46... Qb3 {[%clk 0:00:15.8]} 47. Qd5
{[%clk 0:00:05.6]} 47... Qh3+ {[%clk 0:00:16.8]} 48. Kg1 {[%clk 0:00:06.7]}
48... Qg4+ {[%clk 0:00:17.4]} 49. Kh2 {[%clk 0:00:07.6]} 49... Qh4+ {[%clk
0:00:17.3]} 50. Kg2 {[%clk 0:00:08.6]} 50... Qg4+ {[%clk 0:00:18.5]} 51. Kf1
{[%clk 0:00:09.8]} 51... Qh3+ {[%clk 0:00:19.3]} 1/2-1/2

[Event "*** MasterClass Titled Tuesday Blitz"]
[Site "Chess.com"]
[Date "2017.08.01"]
[Round "8"]
[White "Al_Shima"]
[Black "nutibara"]
[Result "0-1"]
[WhiteElo "2356"]
[BlackElo "2262"]
[TimeControl "180+2"]
[EndTime "14:51:09 PDT"]
[Termination "nutibara won by resignation"]

1. b3 {[%clk 0:02:57.4]} 1... d5 {[%clk 0:03:00.8]} 2. Bb2 {[%clk 0:02:58.6]}
2... c5 {[%clk 0:03:02]} 3. e3 {[%clk 0:02:59.8]} 3... a6 {[%clk 0:03:02.9]} 4.
f4 {[%clk 0:03:00.6]} 4... Nc6 {[%clk 0:03:03.9]} 5. Nf3 {[%clk 0:03:02.2]} 5...
d4 {[%clk 0:03:03.1]} 6. Bd3 {[%clk 0:02:59.1]} 6... g6 {[%clk 0:03:03.7]} 7. e4
{[%clk 0:02:58.6]} 7... Nh6 {[%clk 0:02:59.5]} 8. a4 {[%clk 0:02:58.6]} 8... Bg7
{[%clk 0:02:57.6]} 9. Na3 {[%clk 0:02:54.8]} 9... b6 {[%clk 0:02:56]} 10. Qe2
{[%clk 0:02:55.2]} 10... Bb7 {[%clk 0:02:55.7]} 11. O-O-O {[%clk 0:02:47]} 11...
Qc7 {[%clk 0:02:10.4]} 12. e5 {[%clk 0:02:44.6]} 12... O-O {[%clk 0:01:59.2]}
13. h4 {[%clk 0:02:27.8]} 13... Nf5 {[%clk 0:01:49.3]} 14. Rh3 {[%clk
0:02:16.9]} 14... Nb4 {[%clk 0:01:44.6]} 15. h5 {[%clk 0:02:00.2]} 15... b5
{[%clk 0:01:26.7]} 16. g4 {[%clk 0:01:58.7]} 16... Nxd3+ {[%clk 0:01:26.5]} 17.
Qxd3 {[%clk 0:01:59.2]} 17... Nh6 {[%clk 0:00:38.4]} 18. hxg6 {[%clk 0:01:22.2]}
18... hxg6 {[%clk 0:00:38.6]} 19. Rg1 {[%clk 0:01:12.7]} 19... Bd5 {[%clk
0:00:19.9]} 20. axb5 {[%clk 0:01:07]} 20... axb5 {[%clk 0:00:20.5]} 21. Nxb5
{[%clk 0:01:05.9]} 21... Qb7 {[%clk 0:00:20.7]} 22. Na3 {[%clk 0:01:06.7]} 22...
Ra6 {[%clk 0:00:17.1]} 23. Nc4 {[%clk 0:00:59.9]} 23... Rfa8 {[%clk 0:00:15.2]}
24. Kd1 {[%clk 0:01:00.5]} 24... Be4 {[%clk 0:00:14.4]} 25. Qe2 {[%clk
0:00:58.5]} 25... Ra2 {[%clk 0:00:13]} 26. d3 {[%clk 0:00:58.4]} 26... Bd5
{[%clk 0:00:13.8]} 27. Nfd2 {[%clk 0:00:51.4]} 27... Ra1+ {[%clk 0:00:11.4]} 28.
Bc1 {[%clk 0:00:46.5]} 28... Qb4 {[%clk 0:00:11.2]} 29. Qh2 {[%clk 0:00:42.2]}
29... Bxc4 {[%clk 0:00:06.4]} 30. Nxc4 {[%clk 0:00:40.3]} 30... Qc3 {[%clk
0:00:06.6]} 31. Qd2 {[%clk 0:00:19.8]} 31... Rxc1+ {[%clk 0:00:07]} 32. Qxc1
{[%clk 0:00:21.1]} 32... Ra1 {[%clk 0:00:08.1]} 33. Ke2 {[%clk 0:00:19]} 33...
Rxc1 {[%clk 0:00:08.6]} 34. Rxc1 {[%clk 0:00:20.9]} 34... Nxg4 {[%clk
0:00:09.1]} 35. Rg3 {[%clk 0:00:19.7]} 35... Nh6 {[%clk 0:00:09.3]} 36. Nd2
{[%clk 0:00:19.3]} 36... Qb2 {[%clk 0:00:08.2]} 37. Kd1 {[%clk 0:00:19.5]} 37...
Nf5 {[%clk 0:00:08.5]} 38. Nc4 {[%clk 0:00:20.5]} 38... Qxc1+ {[%clk 0:00:07.8]}
39. Kxc1 {[%clk 0:00:21.2]} 39... Nxg3 {[%clk 0:00:09.7]} 40. Nb6 {[%clk
0:00:19.2]} 40... Bh6 {[%clk 0:00:09.6]} 41. Kb2 {[%clk 0:00:20.4]} 41... Bxf4
{[%clk 0:00:10.5]} 42. Nd7 {[%clk 0:00:22.3]} 42... Nf5 {[%clk 0:00:10.1]} 43.
Nxc5 {[%clk 0:00:23.1]} 43... Bxe5 {[%clk 0:00:11.2]} 44. b4 {[%clk 0:00:24.3]}
44... Bd6 {[%clk 0:00:11.7]} 45. Na6 {[%clk 0:00:25.4]} 45... g5 {[%clk
0:00:08.3]} 46. Kc1 {[%clk 0:00:26.8]} 46... g4 {[%clk 0:00:09.1]} 47. Kd2
{[%clk 0:00:28.7]} 47... g3 {[%clk 0:00:09.9]} 48. Ke2 {[%clk 0:00:30.6]} 48...
e5 {[%clk 0:00:08.6]} 49. b5 {[%clk 0:00:31.1]} 49... Ne7 {[%clk 0:00:09.5]} 50.
b6 {[%clk 0:00:31.8]} 50... Nc6 {[%clk 0:00:09.5]} 51. Kf3 {[%clk 0:00:32.8]}
51... f5 {[%clk 0:00:10.1]} 52. Kxg3 {[%clk 0:00:33.9]} 52... e4+ {[%clk
0:00:11.3]} 53. Kf2 {[%clk 0:00:35.3]} 53... e3+ {[%clk 0:00:12.1]} 54. Kf3
{[%clk 0:00:36.5]} 54... Kf7 {[%clk 0:00:12.9]} 55. b7 {[%clk 0:00:37.6]} 55...
Ke6 {[%clk 0:00:13.4]} 56. Ke2 {[%clk 0:00:36.1]} 56... Nb8 {[%clk 0:00:13.7]}
0-1